[Event "25th European Club Cup Women 2021"]
[Site "Struga"]
[Date "2021.09.23"]
[Round "6.4"]
[White "Buksa, Nataliya"]
[Black "Hrescak, Ivana"]
[Result "1-0"]
[ECO "B90"]
[WhiteElo "2417"]
[BlackElo "2142"]
[Annotator "ChessBase"]
[PlyCount "113"]
[EventDate "2021.09.18"]
[EventType "team-tourn"]
[EventCountry "MKD"]
[SourceTitle "playchess.com"]
[Source "ChessBase"]
[SourceQuality "1"]
[TimeControl "40/5400+30:1800+30"]

1. e4 {[%emt 0:01:44]} c5 {[%emt 0:00:06]} 2. Nf3 {[%emt 0:00:05]} d6 {[%emt 0:
00:05]} 3. d4 {[%emt 0:00:04]} cxd4 {[%emt 0:00:04]} 4. Nxd4 {[%emt 0:00:02]}
Nf6 {[%emt 0:00:07]} 5. Nc3 {[%emt 0:00:04]} a6 {[%emt 0:00:04]} 6. h4 {
[%emt 0:00:03]} e5 {[%emt 0:02:12]} 7. Nb3 {[%emt 0:00:15]} Be6 {[%emt 0:01:20]
} 8. f4 {[%emt 0:00:03]} Qc7 {[%emt 0:02:51]} 9. f5 {[%emt 0:12:00]} Bc4 {
[%emt 0:01:01]} 10. g4 {[%emt 0:03:48]} d5 {[%emt 0:18:22]} 11. Nxd5 {[%emt 0:
02:56]} Bxd5 {[%emt 0:03:29]} 12. exd5 {[%emt 0:00:04]} e4 {[%emt 0:00:15]} 13.
Be3 {[%emt 0:08:18]} Qg3+ {[%emt 0:08:45]} 14. Bf2 {[%emt 0:00:45]} Qf4 {
[%emt 0:14:45]} 15. Qd2 {[%emt 0:07:53]} Bd6 {[%emt 0:03:18]} 16. Be2 {[%emt 0:
03:40]} Qxd2+ {[%emt 0:07:37]} 17. Nxd2 {[%emt 0:01:01]} Bf4 {[%emt 0:02:00]}
18. Rh3 {[%emt 0:02:04]} Nxd5 {[%emt 0:03:08]} 19. Nxe4 {[%emt 0:06:20]} Nc6 {
[%emt 0:00:49]} 20. a3 {[%emt 0:05:02]} O-O-O {[%emt 0:03:26]} 21. c4 {[%emt 0:
02:03]} Nf6 {[%emt 0:01:47]} 22. Nxf6 {[%emt 0:02:45]} gxf6 {[%emt 0:01:58]}
23. Rd1 {[%emt 0:00:04]} Rxd1+ {[%emt 0:04:59]} 24. Kxd1 {[%emt 0:00:05]} Ne5 {
[%emt 0:00:39]} 25. Be3 {[%emt 0:02:49]} Rd8+ {[%emt 0:00:52]} 26. Kc2 {
[%emt 0:00:47]} Bxe3 {[%emt 0:00:45]} 27. Rxe3 {[%emt 0:00:04]} Rd4 {[%emt 0:
00:09]} 28. g5 {[%emt 0:16:02]} Rf4 {[%emt 0:07:32]} 29. gxf6 {[%emt 0:00:03]}
Rxf5 {[%emt 0:00:10]} 30. Kc3 {[%emt 0:00:32]} Kd7 {[%emt 0:03:16]} 31. b4 {
[%emt 0:02:07]} b6 {[%emt 0:02:58]} 32. Re4 {[%emt 0:05:01]} Kc7 {[%emt 0:01:
28]} 33. a4 {[%emt 0:03:00]} Nc6 {[%emt 0:01:25]} 34. b5 {[%emt 0:03:31]} axb5
{[%emt 0:00:01]} 35. cxb5 {[%emt 0:03:01]} Ne5 {[%emt 0:00:01]} 36. Kb4 {
[%emt 0:00:30]} Kd6 {[%emt 0:03:44]} 37. Rd4+ {[%emt 0:01:35]} Kc7 {[%emt 0:00:
12]} 38. Re4 {[%emt 0:08:13]} Kd6 {[%emt 0:00:38]} 39. h5 {[%emt 0:00:27]} Rxf6
{[%emt 0:01:22]} 40. a5 {[%emt 0:00:00]} bxa5+ {[%emt 0:00:00]} 41. Kxa5 {
[%emt 0:01:17]} Kd5 {[%emt 0:15:04]} 42. Ra4 {[%emt 0:09:48]} Rf2 {[%emt 0:01:
03]} 43. Ra2 {[%emt 0:00:03]} Rf6 {[%emt 0:06:42]} 44. Rd2+ {[%emt 0:01:42]}
Kc5 {[%emt 0:00:10]} 45. Rc2+ {[%emt 0:03:35]} Kd5 {[%emt 0:01:00]} 46. Rb2 {
[%emt 0:14:07]} Kc5 {[%emt 0:05:18]} 47. Ra2 {[%emt 0:00:37]} h6 {[%emt 0:02:
15]} 48. Rb2 {[%emt 0:01:10]} Re6 {[%emt 0:01:30]} 49. Rc2+ {[%emt 0:00:35]}
Kd5 {[%emt 0:00:22]} 50. Rc8 {[%emt 0:00:30]} Rf6 {[%emt 0:01:54]} 51. b6 {
[%emt 0:01:00]} Nc6+ {[%emt 0:01:01]} 52. Ka6 {[%emt 0:00:12]} Rf2 {[%emt 0:01:
32]} 53. Bd1 {[%emt 0:02:23]} Kd6 {[%emt 0:00:52]} 54. Ba4 {[%emt 0:00:33]}
Nb4+ {[%emt 0:00:33]} 55. Ka5 {[%emt 0:00:13]} Rb2 {[%emt 0:00:29]} 56. b7 {
[%emt 0:00:28]} Nd5 {[%emt 0:00:33]} 57. b8=Q+ {[%emt 0:00:34]} 1-0

[Event "25th European Club Cup Women 2021"]
[Site "Struga"]
[Date "2021.09.23"]
[Round "6.5"]
[White "Saduakassova, Dinara"]
[Black "Shuvalova, Polina"]
[Result "1/2-1/2"]
[ECO "D02"]
[WhiteElo "2489"]
[BlackElo "2510"]
[Annotator "ChessBase"]
[PlyCount "102"]
[EventDate "2021.09.18"]
[EventType "team-tourn"]
[EventCountry "MKD"]
[SourceTitle "playchess.com"]
[Source "ChessBase"]
[SourceQuality "1"]
[TimeControl "40/5400+30:1800+30"]

1. d4 {[%emt 0:00:26]} d5 {[%emt 0:00:13]} 2. Nf3 {[%emt 0:00:11]} Nf6 {
[%emt 0:00:09]} 3. Bf4 {[%emt 0:00:06]} e6 {[%emt 0:00:42]} 4. e3 {[%emt 0:00:
23]} Bd6 {[%emt 0:00:05]} 5. Nbd2 {[%emt 0:01:08]} O-O {[%emt 0:00:06]} 6. c3 {
[%emt 0:00:23]} b6 {[%emt 0:00:58]} 7. h4 {[%emt 0:00:24]} c5 {[%emt 0:03:55]}
8. Ne5 {[%emt 0:03:50]} Qc7 {[%emt 0:03:00]} 9. h5 {[%emt 0:05:29]} Nfd7 {
[%emt 0:06:04]} 10. Ndf3 {[%emt 0:05:14]} f6 {[%emt 0:05:17]} 11. Nxd7 {
[%emt 0:09:53]} Nxd7 {[%emt 0:07:38]} 12. Qd2 {[%emt 0:02:30]} Bb7 {[%emt 0:03:
34]} 13. Bxd6 {[%emt 0:08:09]} Qxd6 {[%emt 0:00:04]} 14. h6 {[%emt 0:01:35]} g6
{[%emt 0:00:32]} 15. Bb5 {[%emt 0:00:48]} Rad8 {[%emt 0:07:21]} 16. O-O-O {
[%emt 0:05:28]} c4 {[%emt 0:03:13]} 17. g4 {[%emt 0:06:54]} Bc6 {[%emt 0:05:33]
} 18. Bxc6 {[%emt 0:01:29]} Qxc6 {[%emt 0:00:04]} 19. Qc2 {[%emt 0:00:22]} b5 {
[%emt 0:13:00]} 20. Nh4 {[%emt 0:03:11]} f5 {[%emt 0:00:31]} 21. Rhg1 {[%emt 0:
03:33]} Kh8 {[%emt 0:00:41]} 22. f3 {[%emt 0:05:36]} a5 {[%emt 0:05:11]} 23. e4
{[%emt 0:06:22]} fxe4 {[%emt 0:10:19]} 24. fxe4 {[%emt 0:00:53]} dxe4 {[%emt 0:
00:16]} 25. Rde1 {[%emt 0:02:18]} Rf4 {[%emt 0:01:34]} 26. Qe2 {[%emt 0:00:58]}
Rdf8 {[%emt 0:03:10]} 27. Ng2 {[%emt 0:03:51]} Rf2 {[%emt 0:00:22]} 28. Qxe4 {
[%emt 0:01:32]} Qxe4 {[%emt 0:04:05]} 29. Rxe4 {[%emt 0:00:08]} e5 {[%emt 0:03:
57]} 30. Ne1 {[%emt 0:04:08]} exd4 {[%emt 0:00:52]} 31. Rxd4 {[%emt 0:01:08]}
Nc5 {[%emt 0:03:18]} 32. Rd5 {[%emt 0:02:40]} Rc8 {[%emt 0:00:09]} 33. Rd2 {
[%emt 0:05:29]} Rf4 {[%emt 0:01:29]} 34. Kc2 {[%emt 0:02:43]} b4 {[%emt 0:05:
08]} 35. Rgg2 {[%emt 0:02:23]} Kg8 {[%emt 0:01:25]} 36. Rge2 {[%emt 0:02:41]}
Rxg4 {[%emt 0:01:48]} 37. Re7 {[%emt 0:00:05]} b3+ {[%emt 0:00:31]} 38. axb3 {
[%emt 0:00:21]} cxb3+ {[%emt 0:00:03]} 39. Kd1 {[%emt 0:00:24]} Ne4 {[%emt 0:
02:07]} 40. Rdd7 {[%emt 0:00:00]} Nf6 {[%emt 0:00:00]} 41. Rb7 {[%emt 0:08:27]}
Rd8+ {[%emt 0:06:46]} 42. Ke2 {[%emt 0:00:57]} a4 {[%emt 0:00:23]} 43. Nd3 {
[%emt 0:01:41]} Rh4 {[%emt 0:08:30]} 44. Rg7+ {[%emt 0:04:04]} Kh8 {[%emt 0:00:
09]} 45. Rgf7 {[%emt 0:00:34]} Re4+ {[%emt 0:09:37]} 46. Kf1 {[%emt 0:00:53]}
Re6 {[%emt 0:00:06]} 47. Nc5 {[%emt 0:07:20]} Re5 {[%emt 0:00:41]} 48. Rxf6 {
[%emt 0:03:51]} Rxc5 {[%emt 0:00:14]} 49. Ra7 {[%emt 0:00:06]} Rh5 {[%emt 0:01:
46]} 50. Rxa4 {[%emt 0:01:40]} Rxh6 {[%emt 0:00:05]} 51. Rf2 {[%emt 0:01:52]}
g5 {[%emt 0:02:38]} 1/2-1/2

[Event "25th European Club Cup Women 2021"]
[Site "Struga"]
[Date "2021.09.23"]
[Round "6.6"]
[White "Atalik, Ekaterina"]
[Black "Gunina, Valentina"]
[Result "0-1"]
[ECO "D02"]
[WhiteElo "2429"]
[BlackElo "2446"]
[Annotator "NA"]
[PlyCount "72"]
[EventDate "2021.09.18"]
[EventType "team-tourn"]
[EventCountry "MKD"]
[SourceTitle "playchess.com"]
[Source "ChessBase"]
[SourceQuality "1"]
[TimeControl "40/5400+30:1800+30"]

1. d4 {[%emt 0:00:05]} d5 {[%emt 0:00:05]} 2. Nf3 {[%emt 0:00:18]} Nf6 {
[%emt 0:00:10]} 3. Bf4 {[%emt 0:00:34]} c5 {[%emt 0:00:27]} 4. dxc5 {[%emt 0:
00:32]} e6 {[%emt 0:00:57]} 5. e3 {[%emt 0:01:14]} Bxc5 {[%emt 0:00:19]} 6. a3
{[%emt 0:00:17]} O-O {[%emt 0:00:26]} 7. Be2 {[%emt 0:00:33]} Nc6 {[%emt 0:03:
08]} 8. O-O {[%emt 0:00:20]} Qe7 {[%emt 0:03:51]} 9. Nc3 {[%emt 0:05:18]} Rd8 {
[%emt 0:01:37]} 10. Ne5 {[%emt 0:14:36]} Bd6 {[%emt 0:04:49]} 11. Nxc6 bxc6 {
[%emt 0:00:07]} 12. Bxd6 {[%emt 0:06:53]} Rxd6 {[%emt 0:00:04]} 13. b4 {
[%emt 0:04:22]} e5 {[%emt 0:00:41]} 14. Na4 {[%emt 0:11:05]} Bf5 {[%emt 0:02:
32]} 15. f3 {[%emt 0:05:46]} Nd7 {[%emt 0:00:41]} 16. Qd2 {[%emt 0:03:18]} Re8
{[%emt 0:03:59]} 17. Rad1 {[%emt 0:04:55]} Rg6 {[%emt 0:03:14]} 18. Rf2 {
[%emt 0:02:12]} Be6 {[%emt 0:03:37]} 19. c4 {[%emt 0:02:25]} Nb6 {[%emt 0:24:
58]} 20. Nxb6 {[%emt 0:01:45]} axb6 {[%emt 0:00:12]} 21. cxd5 {[%emt 0:00:30]}
Bxd5 {[%emt 0:00:05]} 22. Qc3 {[%emt 0:01:26]} e4 {[%emt 0:05:18]} 23. f4 {
[%emt 0:00:23]} Ra8 {[%emt 0:00:28]} 24. Bf1 {[%emt 0:03:07]} Qa7 {[%emt 0:01:
12]} 25. Ra1 {[%emt 0:00:42]} b5 {[%emt 0:03:30]} 26. Rd2 {[%emt 0:00:58]} Rd6
{[%emt 0:00:25]} 27. Be2 {[%emt 0:02:02]} h6 {[%emt 0:07:13]} 28. Bd1 {[%emt 0:
02:02]} Rdd8 {[%emt 0:00:32]} 29. Bc2 {[%emt 0:02:34]} Bc4 {[%emt 0:06:12]} 30.
Bxe4 {[%emt 0:09:56]} Rxd2 {[%emt 0:00:59]} 31. Qxd2 {[%emt 0:00:05]} Re8 {
[%emt 0:00:05]} 32. Bxc6 {[%emt 0:01:17]} Rxe3 {[%emt 0:00:07]} 33. Qf2 {
[%emt 0:01:12]} Qd4 {[%emt 0:00:44]} 34. Rc1 {[%emt 0:01:25]} Qd3 {[%emt 0:00:
57]} 35. h3 {[%emt 0:06:22]} Re2 {[%emt 0:04:11]} 36. Qa7 {[%emt 0:02:46]} Bd5
{[%emt 0:02:10]} 0-1

[Event "25th European Club Cup Women 2021"]
[Site "Struga"]
[Date "2021.09.23"]
[Round "6.7"]
[White "Badelka, Olga"]
[Black "Bulmaga, Irina"]
[Result "1-0"]
[ECO "A25"]
[WhiteElo "2422"]
[BlackElo "2407"]
[Annotator "NA"]
[PlyCount "45"]
[EventDate "2021.09.18"]
[EventType "team-tourn"]
[EventCountry "MKD"]
[SourceTitle "playchess.com"]
[Source "ChessBase"]
[SourceQuality "1"]
[TimeControl "40/5400+30:1800+30"]

1. c4 {[%emt 0:00:04]} e5 {[%emt 0:00:06]} 2. Nc3 {[%emt 0:00:13]} Nf6 {
[%emt 0:00:08]} 3. g3 {[%emt 0:00:17]} Nc6 {[%emt 0:00:09]} 4. Bg2 {[%emt 0:00:
17]} Bc5 {[%emt 0:00:18]} 5. e3 {[%emt 0:00:33]} d5 {[%emt 0:00:07]} 6. cxd5 {
[%emt 0:00:20]} Nb4 {[%emt 0:00:06]} 7. Nf3 {[%emt 0:00:44]} Nd3+ {[%emt 0:00:
52]} 8. Ke2 {[%emt 0:00:06]} Nxd5 {[%emt 0:01:03]} 9. Qa4+ {[%emt 0:00:15]} Bd7
{[%emt 0:04:28]} 10. Qe4 {[%emt 0:00:54]} N5b4 {[%emt 0:03:53]} 11. a3 {
[%emt 0:01:20]} f5 {[%emt 0:11:05]} 12. Qc4 {[%emt 0:02:14]} e4 {[%emt 0:05:20]
} 13. axb4 {[%emt 0:11:53]} exf3+ {[%emt 0:05:14]} 14. Bxf3 {[%emt 0:00:06]}
Ne5 {[%emt 0:11:04]} 15. Qxc5 {[%emt 0:01:28]} Nxf3 {[%emt 0:00:31]} 16. Kxf3 {
[%emt 0:05:50]} Bc6+ {[%emt 0:00:58]} 17. e4 {[%emt 0:01:18]} fxe4+ {[%emt 0:
06:29]} 18. Kg2 {[%emt 0:01:50]} Qf6 {[%emt 0:14:48]} 19. Rf1 {[%emt 0:03:41]}
O-O-O {[%emt 0:12:50]} 20. b5 {[%emt 0:02:44]} Qf3+ {[%emt 0:01:14]} 21. Kg1 {
[%emt 0:00:19]} Bd7 {[%emt 0:02:52]} 22. Nd5 {[%emt 0:00:53]} c6 {[%emt 0:03:
08]} 23. Rxa7 {[%emt 0:00:57]} 1-0

[Event "25th European Club Cup Women 2021"]
[Site "Struga"]
[Date "2021.09.23"]
[Round "6.8"]
[White "Stojkovska, Monika"]
[Black "Maltsevskaya, Aleksandra"]
[Result "0-1"]
[ECO "B46"]
[WhiteElo "2081"]
[BlackElo "2407"]
[Annotator "NA"]
[PlyCount "94"]
[EventDate "2021.09.18"]
[EventType "team-tourn"]
[EventCountry "MKD"]
[SourceTitle "playchess.com"]
[Source "ChessBase"]
[SourceQuality "1"]
[TimeControl "40/5400+30:1800+30"]

1. e4 {[%emt 0:00:03]} c5 {[%emt 0:00:07]} 2. Nf3 {[%emt 0:00:06]} e6 {[%emt 0:
00:07]} 3. d4 {[%emt 0:00:14]} cxd4 {[%emt 0:00:07]} 4. Nxd4 {[%emt 0:00:05]}
Nc6 {[%emt 0:00:05]} 5. Nc3 {[%emt 0:00:43]} a6 {[%emt 0:00:11]} 6. Nxc6 {
[%emt 0:01:02]} bxc6 {[%emt 0:00:08]} 7. Bd3 {[%emt 0:00:10]} d5 {[%emt 0:00:
08]} 8. O-O {[%emt 0:00:24]} Nf6 {[%emt 0:00:09]} 9. Re1 {[%emt 0:00:52]} Be7 {
[%emt 0:00:10]} 10. e5 {[%emt 0:00:10]} Nd7 {[%emt 0:00:06]} 11. Qg4 {[%emt 0:
00:17]} Kf8 {[%emt 0:00:08]} 12. Na4 {[%emt 0:02:13]} Bb7 {[%emt 0:08:21]} 13.
c4 {[%emt 0:03:19]} h5 {[%emt 0:14:44]} 14. Qe2 {[%emt 0:13:32]} d4 {[%emt 0:
07:22]} 15. b3 {[%emt 0:03:16]} c5 {[%emt 0:00:40]} 16. Be4 {[%emt 0:07:19]}
Qc7 {[%emt 0:00:47]} 17. Bxb7 {[%emt 0:07:15]} Qxb7 {[%emt 0:00:08]} 18. Qe4 {
[%emt 0:00:27]} Qxe4 {[%emt 0:05:53]} 19. Rxe4 {[%emt 0:00:02]} a5 {[%emt 0:06:
00]} 20. Nb2 {[%emt 0:10:13]} g6 {[%emt 0:01:56]} 21. Nd3 {[%emt 0:04:22]} Kg7
{[%emt 0:02:11]} 22. Bd2 {[%emt 0:02:48]} Rhb8 {[%emt 0:00:41]} 23. Rb1 {
[%emt 0:05:16]} Nb6 {[%emt 0:07:52]} 24. Rc1 {[%emt 0:01:14]} Nd7 {[%emt 0:06:
01]} 25. Rb1 {[%emt 0:01:58]} a4 {[%emt 0:01:33]} 26. b4 {[%emt 0:02:37]} a3 {
[%emt 0:01:11]} 27. Ree1 {[%emt 0:11:42]} cxb4 {[%emt 0:02:13]} 28. Bxb4 {
[%emt 0:05:56]} Bxb4 {[%emt 0:00:08]} 29. Rxb4 {[%emt 0:00:26]} Rxb4 {[%emt 0:
00:22]} 30. Nxb4 {[%emt 0:00:01]} Rc8 {[%emt 0:02:06]} 31. Nc2 {[%emt 0:03:45]}
Rxc4 {[%emt 0:00:47]} 32. Nxa3 {[%emt 0:00:11]} Ra4 {[%emt 0:00:29]} 33. Nb5 {
[%emt 0:02:23]} Rb4 {[%emt 0:01:34]} 34. a4 {[%emt 0:06:16]} Nxe5 {[%emt 0:00:
23]} 35. f4 {[%emt 0:01:30]} Nd3 {[%emt 0:00:49]} 36. Rd1 {[%emt 0:01:21]} Nxf4
{[%emt 0:00:09]} 37. g3 {[%emt 0:00:52]} Ne2+ {[%emt 0:00:08]} 38. Kf1 {
[%emt 0:00:14]} Nc3 {[%emt 0:00:08]} 39. Nxc3 {[%emt 0:01:38]} dxc3 {[%emt 0:
00:07]} 40. Rc1 {[%emt 0:00:00]} Rxa4 {[%emt 0:00:00]} 41. Rxc3 {[%emt 0:00:21]
} Ra2 {[%emt 0:00:20]} 42. Kg1 {[%emt 0:00:09]} g5 {[%emt 0:00:11]} 43. Rc5 {
[%emt 0:00:57]} f5 {[%emt 0:00:22]} 44. Rb5 {[%emt 0:00:31]} Kf6 {[%emt 0:00:
17]} 45. Rc5 {[%emt 0:00:29]} h4 {[%emt 0:00:16]} 46. gxh4 {[%emt 0:00:57]}
gxh4 {[%emt 0:00:08]} 47. Rc8 {[%emt 0:00:10]} e5 {[%emt 0:00:15]} 0-1

[Event "25th European Club Cup Women 2021"]
[Site "Struga"]
[Date "2021.09.23"]
[Round "6.12"]
[White "Trajkovska, Sanja"]
[Black "Skripchenko, Almira"]
[Result "0-1"]
[ECO "B06"]
[WhiteElo "1968"]
[BlackElo "2396"]
[Annotator "NA"]
[PlyCount "78"]
[EventDate "2021.09.18"]
[EventType "team-tourn"]
[EventCountry "MKD"]
[SourceTitle "playchess.com"]
[Source "ChessBase"]
[SourceQuality "1"]
[TimeControl "40/5400+30:1800+30"]

1. e4 {[%emt 0:00:03]} g6 {[%emt 0:00:14]} 2. d4 {[%emt 0:01:42]} Bg7 {[%emt 0:
00:00]} 3. Be3 {[%emt 0:00:10]} d6 {[%emt 0:02:20]} 4. Nc3 {[%emt 0:01:09]} a6
{[%emt 0:00:14]} 5. Nf3 {[%emt 0:00:35]} Nd7 {[%emt 0:02:38]} 6. Qd2 {[%emt 0:
02:08]} e6 {[%emt 0:00:30]} 7. h4 {[%emt 0:00:30]} h6 {[%emt 0:00:30]} 8. g4 {
[%emt 0:00:30]} b5 {[%emt 0:00:30]} 9. O-O-O {[%emt 0:00:30]} b4 {[%emt 0:00:
30]} 10. Na4 {[%emt 0:00:30]} Ngf6 {[%emt 0:00:30]} 11. e5 {[%emt 0:00:30]}
Nxg4 {[%emt 0:00:30]} 12. exd6 {[%emt 0:00:30]} cxd6 {[%emt 0:00:30]} 13. Qxb4
{[%emt 0:00:30]} d5 {[%emt 0:00:30]} 14. Bd3 {[%emt 0:00:30]} Qc7 {[%emt 0:00:
30]} 15. Rhg1 {[%emt 0:00:30]} Rb8 {[%emt 0:00:30]} 16. Qd2 {[%emt 0:00:30]}
Nxe3 {[%emt 0:00:30]} 17. fxe3 {[%emt 0:00:30]} e5 {[%emt 0:00:30]} 18. dxe5 {
[%emt 0:00:30]} Nxe5 {[%emt 0:00:30]} 19. Nxe5 {[%emt 0:00:30]} Qxe5 {[%emt 0:
00:30]} 20. c3 {[%emt 0:00:30]} O-O {[%emt 0:00:30]} 21. Nc5 {[%emt 0:00:30]}
a5 {[%emt 0:00:30]} 22. Qf2 {[%emt 0:00:30]} Rb6 {[%emt 0:00:30]} 23. Qf4 {
[%emt 0:00:30]} Qe7 {[%emt 0:00:30]} 24. Nb3 {[%emt 0:00:30]} Rf6 {[%emt 0:00:
30]} 25. Qg3 {[%emt 0:00:30]} h5 {[%emt 0:00:30]} 26. Rde1 {[%emt 0:00:30]} Bg4
{[%emt 0:00:30]} 27. Nd4 {[%emt 0:00:30]} Rb6 {[%emt 0:00:30]} 28. Qf2 {
[%emt 0:00:30]} Rfb8 {[%emt 0:00:30]} 29. b3 {[%emt 0:00:30]} Qc5 {[%emt 0:00:
30]} 30. Kb2 {[%emt 0:00:30]} a4 {[%emt 0:00:30]} 31. Qc2 {[%emt 0:00:30]} Qe7
{[%emt 0:00:30]} 32. b4 {[%emt 0:00:30]} a3+ {[%emt 0:00:30]} 33. Ka1 {[%emt 0:
00:30]} Qxh4 {[%emt 1:21:31]} 34. Qb3 {[%emt 1:27:24]} Qf2 {[%emt 0:07:03]} 35.
Qxa3 {[%emt 0:00:33]} Qd2 {[%emt 0:00:00]} 36. Bb1 {[%emt 0:00:31]} Rc8 {
[%emt 0:00:00]} 37. Qb2 {[%emt 0:00:43]} Qxc3 {[%emt 0:00:00]} 38. Qxc3 {
[%emt 0:00:03]} Rxc3 {[%emt 0:00:00]} 39. Kb2 {[%emt 0:00:26]} Rxe3 {[%emt 0:
00:00]} 0-1

[Event "25th European Club Cup Women 2021"]
[Site "Struga"]
[Date "2021.09.23"]
[Round "6.14"]
[White "Radeva, Viktoria"]
[Black "Urh, Zala"]
[Result "1/2-1/2"]
[ECO "C55"]
[WhiteElo "2350"]
[BlackElo "2234"]
[Annotator "NA"]
[PlyCount "79"]
[EventDate "2021.09.18"]
[EventType "team-tourn"]
[EventCountry "MKD"]
[SourceTitle "playchess.com"]
[Source "ChessBase"]
[SourceQuality "1"]
[TimeControl "40/5400+30:1800+30"]

1. e4 {[%emt 0:00:02]} e5 {[%emt 0:00:40]} 2. Nf3 {[%emt 0:00:03]} Nc6 {
[%emt 0:00:08]} 3. Bc4 {[%emt 0:00:04]} Nf6 {[%emt 0:00:12]} 4. d3 {[%emt 0:00:
11]} h6 {[%emt 0:00:11]} 5. O-O {[%emt 0:00:34]} d6 {[%emt 0:00:10]} 6. a4 {
[%emt 0:01:00]} g5 {[%emt 0:01:55]} 7. c3 {[%emt 0:05:23]} Bg7 {[%emt 0:00:49]}
8. Nbd2 {[%emt 0:09:33]} O-O {[%emt 0:01:49]} 9. h3 {[%emt 0:02:24]} Ne7 {
[%emt 0:16:14]} 10. Re1 {[%emt 1:16:16]} Ng6 {[%emt 0:00:51]} 11. Nf1 {[%emt 0:
00:00]} d5 {[%emt 0:03:07]} 12. exd5 {[%emt 0:00:00]} Nxd5 {[%emt 1:10:24]} 13.
d4 {[%emt 0:01:30]} exd4 {[%emt 0:00:00]} 14. Nxd4 {[%emt 0:00:00]} c5 {
[%emt 0:01:00]} 15. Nf5 Bxf5 16. Bxd5 Qd7 17. Qb3 Rad8 18. Ne3 b6 19. a5 b5 20.
Nxf5 Qxd5 21. Qxd5 Rxd5 22. Nxg7 Kxg7 23. a6 Ne5 24. b3 Rfd8 25. Be3 f5 26. b4
cxb4 27. Bxa7 bxc3 28. Bb6 Nd3 29. Re7+ Kf6 30. Bxd8 Rxd8 31. Rc7 b4 32. a7 Ra8
33. Kf1 Nf4 34. Rc6+ Ke5 35. Rb6 c2 {[%emt 0:00:00]} 36. Rxb4 {[%emt 0:00:00]}
Nd3 {[%emt 0:00:00]} 37. Rc4 {[%emt 0:00:00]} c1=Q+ {[%emt 0:00:00]} 38. Raxc1
{[%emt 0:00:00]} Nxc1 {[%emt 0:00:00]} 39. Rxc1 {[%emt 0:00:00]} Rxa7 {[%emt 0:
00:00]} 40. Re1+ {[%emt 0:00:00]} 1/2-1/2

[Event "25th European Club Cup Women 2021"]
[Site "Struga"]
[Date "2021.09.23"]
[Round "6.15"]
[White "Vidic, Teja"]
[Black "Mehmed, Elif"]
[Result "0-1"]
[ECO "B50"]
[WhiteElo "2172"]
[BlackElo "2260"]
[Annotator "NA"]
[PlyCount "76"]
[EventDate "2021.09.18"]
[EventType "team-tourn"]
[EventCountry "MKD"]
[SourceTitle "playchess.com"]
[Source "ChessBase"]
[SourceQuality "1"]
[TimeControl "40/5400+30:1800+30"]

1. e4 {[%emt 0:00:04]} c5 {[%emt 0:00:05]} 2. Nf3 {[%emt 0:00:13]} d6 {[%emt 0:
00:05]} 3. c3 {[%emt 0:00:28]} Nf6 {[%emt 0:00:05]} 4. Be2 {[%emt 0:00:13]} Bd7
{[%emt 0:00:07]} 5. Qc2 {[%emt 0:00:06]} Nc6 {[%emt 0:01:43]} 6. d4 {[%emt 0:
02:44]} cxd4 {[%emt 0:05:48]} 7. cxd4 {[%emt 0:00:30]} Qb6 {[%emt 0:00:30]} 8.
Nc3 {[%emt 0:00:30]} Rc8 {[%emt 0:00:30]} 9. d5 {[%emt 0:00:30]} Na5 {[%emt 0:
00:30]} 10. Be3 {[%emt 0:00:30]} Qc7 {[%emt 0:00:30]} 11. O-O {[%emt 0:00:30]}
g6 {[%emt 0:00:30]} 12. Bd4 {[%emt 0:00:30]} Bg7 {[%emt 0:00:30]} 13. Rac1 {
[%emt 0:00:30]} Qb8 {[%emt 0:00:30]} 14. e5 {[%emt 0:00:30]} Nh5 {[%emt 0:00:
30]} 15. e6 {[%emt 0:00:30]} fxe6 {[%emt 0:00:30]} 16. dxe6 {[%emt 0:00:30]}
Bxe6 {[%emt 0:00:30]} 17. Bb5+ {[%emt 0:00:30]} Nc6 {[%emt 0:27:38]} 18. Rfe1 {
[%emt 1:06:16]} Bf5 {[%emt 0:58:59]} 19. Qb3 {[%emt 0:01:51]} a6 {[%emt 0:00:
00]} 20. Ng5 {[%emt 0:06:35]} Rf8 {[%emt 0:00:00]} 21. Bxg7 {[%emt 0:04:21]}
Nxg7 {[%emt 0:00:00]} 22. Bxc6+ {[%emt 0:02:28]} bxc6 {[%emt 0:00:00]} 23. Qc4
{[%emt 0:00:51]} h6 {[%emt 0:00:00]} 24. Qe2 {[%emt 0:02:43]} Qa7 {[%emt 0:00:
00]} 25. Nce4 {[%emt 0:04:08]} Bxe4 {[%emt 0:00:00]} 26. Nxe4 {[%emt 0:00:27]}
Kf7 {[%emt 0:00:00]} 27. Qg4 {[%emt 0:00:38]} Nf5 {[%emt 0:00:00]} 28. h4 {
[%emt 0:00:46]} Kg7 {[%emt 0:00:00]} 29. h5 {[%emt 0:00:25]} g5 {[%emt 0:00:00]
} 30. Rc3 {[%emt 0:01:01]} Qd4 {[%emt 0:00:00]} 31. Qe2 {[%emt 0:00:50]} Qe5 {
[%emt 0:00:00]} 32. Qd2 {[%emt 0:03:52]} Qf4 {[%emt 0:01:13]} 33. Qd1 {[%emt 0:
00:00]} Nh4 {[%emt 0:01:38]} 34. Qd4+ {[%emt 0:00:15]} Kg8 {[%emt 0:00:00]} 35.
Qd3 {[%emt 0:00:30]} d5 {[%emt 0:00:00]} 36. g3 {[%emt 0:00:25]} Nf3+ {[%emt 0:
02:33]} 37. Kh1 {[%emt 0:00:03]} Nxe1 {[%emt 0:00:23]} 38. Nf6+ {[%emt 0:00:52]
} Qxf6 {[%emt 0:00:11]} 0-1